[Event "Israeli Championship 2022"]
[Site "Yosiah Arad"]
[Date "2022.12.06"]
[Round "2.4"]
[White "Zanan, Evgeny"]
[Black "Sokolovsky, Yahli"]
[Result "0-1"]
[ECO "A45"]
[WhiteElo "2485"]
[BlackElo "2414"]
[Annotator "TA"]
[PlyCount "74"]
[EventDate "2022.12.05"]
[EventType "swiss"]
[EventCountry "ISR"]
[SourceTitle "playchess.com"]
[Source "ChessBase"]
[SourceQuality "1"]
[TimeControl "40/5400+30:1800+30"]

{[%evp 9,74,0,0,0,9,8,8,-5,-12,-18,-19,-33,-17,-40,-39,-37,-43,-42,-32,-70,-49,-54,-56,-95,-97,-123,-120,-133,-128,-130,-89,-89,-89,-114,-120,-126,-112,-140,-91,-105,-83,-87,-88,-89,-102,-119,-118,-146,-85,-213,-214,-214,-217,-245,-245,-245,-245,-260,-250,-240,-245,-211,-218,-361,-329,-927,-896]} 1. d4 {[%emt 0:00:05]} Nf6 {[%emt 0:00:05]} 2. Bf4 {[%emt 0:00:04]} g6 {[%emt 0:00:21]} 3. Nc3 {[%emt 0:00:26]} d5 {[%emt 0:00:05]} 4. e3 {[%emt 0:00:04]} Bg7 {[%emt 0:00:09]} 5. h4 {[%emt 0:00:12]} c6 {[%emt 0:01:30]} 6. Be2 {[%emt 0:05:06] A45: Trompowsky Attack.} h5 {[%emt 0:00:10]} 7. Nf3 {[%emt 0:00:09]} Nbd7 {[%emt 0:00:42]} 8. Ne5 {[%emt 0:03:00] The position is equal.} Qb6 {[%emt 0:00:18]} 9. Rb1 {[%emt 0:02:48]} O-O {[%emt 0:05:57]} 10. Nxd7 {[%emt 0:19:00]} Bxd7 {[%emt 0:01:03]} 11. Be5 {[%emt 0:14:45]} Ng4 {[%emt 0:02:31]} 12. Bxg7 {[%emt 0:01:17]} Kxg7 {[%emt 0:00:05] [#]} 13. Qd2 $146 {[%emt 0:01:30]} ({Predecessor:} 13. Bxg4 Bxg4 14. Qd2 Qc7 15. e4 dxe4 16. Nxe4 Bf5 17. Ng3 Be6 18. O-O Rad8 19. Qc3 {1-0 (46) Nguyen,N (2641)-Johnson,D (2083) Chess.com INT 2021}) 13... Rae8 {[%emt 0:16:50]} 14. Na4 {[%emt 0:05:40]} Qc7 {[%emt 0:01:22]} 15. Nc5 {[%emt 0:00:08]} Bf5 {[%emt 0:05:54]} 16. Bxg4 {[%emt 0:07:32]} hxg4 {[%emt 0:01:37]} (16... Bxg4 $6 17. O-O $15) 17. h5 {[%emt 0:06:16]} Rh8 {[%emt 0:01:06] Inhibits e4.} 18. h6+ {[%emt 0:00:56]} Kh7 {[%emt 0:00:48]} (18... Rxh6 19. Rxh6 Kxh6 20. e4+ Kg7 21. exf5 $18) 19. Nd3 {[%emt 0:09:23]} Bxd3 {[%emt 0:10:00]} 20. cxd3 {[%emt 0:01:02]} e5 {[%emt 0:00:22]} 21. dxe5 {[%emt 0:03:04]} Qxe5 {[%emt 0:00:59]} 22. Kf1 {[%emt 0:00:30]} Re6 {[%emt 0:16:28]} 23. Rh4 {[%emt 0:05:18]} g3 {[%emt 0:15:19]} (23... f5 $142 24. d4 Qd6) 24. Rf4 {[%emt 0:05:46]} Kg8 {[%emt 0:00:37]} 25. fxg3 {[%emt 0:03:00]} Rxh6 {[%emt 0:02:39] [#] Hoping for ...Rh1+.} (25... Qxe3 {simplifies} 26. Qxe3 Rxe3 27. Ra4 Rxh6 28. Kf2 Rxd3 29. Rxa7 b5) 26. Kf2 {[%emt 0:00:06]} g5 {[%emt 0:01:09]} 27. d4 {[%emt 0:02:35]} Qh8 {[%emt 0:01:04]} 28. Rf5 {[%emt 0:01:10] [#]} Rhf6 {[%emt 0:05:22]} (28... Ref6 $142 $1 {[%cal Rf6f5]} 29. Rxf6 Qxf6+ 30. Kg1 Qd6) 29. e4 {[%emt 0:01:56] Now White is beyond hope.} (29. Rxf6 $17 {was called for.} Qxf6+ 30. Kg1) 29... Rxf5+ $19 {[%emt 0:01:26]} (29... dxe4 30. Qxg5+ Kf8 31. Rxf6 Qxf6+ 32. Qxf6 Rxf6+ 33. Ke3 $11) 30. exf5 {[%emt 0:00:02][%mdl 4096] Endgame KQR-KQR} Qf6 {[%emt 0:00:10]} 31. Kg1 {[%emt 0:01:18]} Re4 {[%emt 0:01:01]} (31... Qxf5 32. Re1) 32. Rd1 {[%emt 0:00:27]} Qxf5 {[%emt 0:02:58]} 33. Rf1 {[%emt 0:00:16]} Qg4 {[%emt 0:00:01][%csl LRd4,LRg3]} ({Not} 33... Qg6 34. Re1 $17) 34. Qf2 {[%emt 0:01:41]} Qe6 {[%emt 0:00:20] Active counter play!} (34... Rxd4 {leads to mate.} 35. Qxf7+ Kh8 36. Qf8+ (36. Qxb7 Rd1 $11) 36... Kh7 37. Rf7+ Kg6 38. Rf6+ Kh7 39. Rh6#) 35. Qd2 {[%emt 0:00:05]} Qe7 {[%emt 0:02:05] And now ...Re2 would win.} 36. Rf2 {[%emt 0:01:16] Inhibits Re2.} (36. Rf5 $142) 36... Re1+ {[%emt 0:01:49]} 37. Kh2 $2 {[%emt 0:00:12]} (37. Rf1 Re2 38. Qc3) 37... f5 {[%emt 0:02:05] Weighted Error Value: White=0.31/Black=0.08 (flawless)} 0-1

[Event "Israeli Championship 2022"]
[Site "Yosiah Arad"]
[Date "2022.12.06"]
[Round "2.5"]
[White "Zemach, Nadav"]
[Black "Parkhov, Yair"]
[Result "0-1"]
[ECO "D76"]
[WhiteElo "2402"]
[BlackElo "2470"]
[Annotator "TA"]
[PlyCount "98"]
[EventDate "2022.12.05"]
[EventType "swiss"]
[EventCountry "ISR"]
[SourceTitle "playchess.com"]
[Source "ChessBase"]
[SourceQuality "1"]
[TimeControl "40/5400+30:1800+30"]

{[%evp 17,98,7,15,0,0,0,0,0,0,0,8,-16,-23,-18,0,0,0,-20,0,0,-1,-11,2,-42,-16,-54,0,0,0,0,0,-13,43,0,0,-36,-27,-46,-55,-69,-87,-104,-101,-116,-110,-108,-84,-156,-89,-299,-284,-372,-358,-452,-427,-420,-316,-278,-273,-716,-553,-562,-437,-510,-448,-530,-509,-1133,-1097,-1323,-1218,-1140,-1183,-2824,-2715,-3715,-3193,-29989,-29990,-29991,-29992,-29992,-29993]} 1. d4 {[%emt 0:00:02]} Nf6 {[%emt 0:00:11]} 2. c4 {[%emt 0:00:05]} g6 {[%emt 0:00:04]} 3. g3 {[%emt 0:00:14]} Bg7 {[%emt 0:00:05]} 4. Bg2 {[%emt 0:00:05]} O-O {[%emt 0:00:07]} 5. Nc3 {[%emt 0:00:17]} Nc6 {[%emt 0:00:08]} 6. Nf3 {[%emt 0:00:42]} d5 {[%emt 0:00:08]} 7. cxd5 {[%emt 0:02:01]} Nxd5 {[%emt 0:00:06]} 8. O-O {[%emt 0:00:43]} Nb6 {[%emt 0:00:06]} 9. e3 {[%emt 0:01:21]} Re8 {[%emt 0:00:15]} 10. Nh4 {[%emt 0:02:14] D76: Fianchetto Grünfeld: Main Line with 7...Nb6.} e5 {[%emt 0:00:56][%cal Re5d4]} 11. d5 {[%emt 0:01:03]} Nb4 {[%emt 0:00:09][%cal Oe5e4]} 12. e4 {[%emt 0:05:26] The position is equal.} c6 $1 {[%emt 0:00:17]} 13. Qb3 {[%emt 0:11:57]} Nd3 {[%emt 0:01:38] [#]} 14. Rd1 $146 {[%emt 0:07:09]} (14. Be3 {is interesting.} Nf4 15. a4 cxd5 16. exd5 Bd7 17. a5) ({Predecessor:} 14. Be3 Nf4 15. Bf3 cxd5 16. exd5 g5 17. gxf4 exf4 18. Bxb6 axb6 19. Rfe1 Be5 20. Ng2 {0-1 (30) Cori,J (2671)-Firouzja,A (2702) Hoogeveen 2019}) 14... Nxc1 {[%emt 0:04:05]} 15. Raxc1 {[%emt 0:00:05] dxc6 is the strong threat.} Qf6 {[%emt 0:15:05]} 16. h3 {[%emt 0:04:14]} Bf8 {[%emt 0:08:34]} 17. Rc2 {[%emt 0:08:57]} cxd5 {[%emt 0:11:52]} (17... Rd8 $5) 18. exd5 {[%emt 0:02:18]} Bd7 {[%emt 0:00:13]} 19. Re2 {[%emt 0:04:42]} Rac8 {[%emt 0:10:20]} (19... Qd6 {seems wilder.} 20. Ne4 Ba4 21. Qe3 Qd8) 20. Rde1 {[%emt 0:01:52]} Bd6 {[%emt 0:09:26]} 21. Nf3 {[%emt 0:05:01]} (21. Ne4 {looks sharper.} Qe7 22. g4 Ba4 23. Qf3) 21... Bf5 {[%emt 0:07:39]} (21... Qg7 $1 $15) 22. Nb5 {[%emt 0:03:51]} Bb8 {[%emt 0:05:09]} 23. g4 {[%emt 0:03:50]} Bd7 {[%emt 0:01:40]} 24. Nc3 {[%emt 0:00:56]} Kg7 {[%emt 0:04:24]} (24... h6 $11) 25. a4 {[%emt 0:06:14]} (25. g5 {with more complications.} Qf5 26. Re4 Rc5 27. a4) 25... h6 {[%emt 0:06:00]} 26. a5 {[%emt 0:03:25]} Nc4 {[%emt 0:00:31]} 27. Qxb7 {[%emt 0:00:12]} Qd8 {[%emt 0:00:54]} 28. Ra1 {[%emt 0:05:24]} f5 {[%emt 0:02:14]} 29. gxf5 {[%emt 0:04:38]} gxf5 {[%emt 0:00:09]} 30. Nd2 {[%emt 0:02:02]} Nd6 {[%emt 0:03:06][%mdl 1024] Black has strong compensation.} 31. Qb4 {[%emt 0:00:28]} Kh7 {[%emt 0:00:43]} 32. Rae1 {[%emt 0:07:04] [#]} (32. Kh1 $142) 32... Qf6 {[%emt 0:00:36]} (32... Nf7 $142 $1 33. Qb7 e4) 33. Nf3 $2 {[%emt 0:01:54] Now White is beyond hope.} (33. Kh1 $17 {is a better defense.}) 33... e4 $19 {[%emt 0:04:27]} 34. Qd4 {[%emt 0:00:36]} Qg6 {[%emt 0:00:53]} 35. Ne5 {[%emt 0:01:29] [#]} Rxe5 {[%emt 0:00:58][%mdl 576]} 36. Qxe5 {[%emt 0:00:16]} Rg8 {[%emt 0:01:02][%csl Gg8][%cal Rg6g2] Really sharp!} 37. Qg3 {[%emt 0:03:16] Black must now prevent Qxg6+.} Qf6 {[%emt 0:02:36]} ({Weaker is} 37... Qxg3 38. fxg3 Rxg3 39. Rf2 $11) 38. Qe3 {[%emt 0:00:19]} (38. Qf4 Qg6 39. Qg3) 38... Nc4 {[%emt 0:00:42]} 39. Qc5 {[%emt 0:00:16]} Ne5 {[%emt 0:00:42][%cal Bc4e5,Be5f3,Bf3h2][%mdl 32] And now ...Nf3+ would win.} 40. Re3 {[%emt 0:02:04]} Nf3+ {[%emt 0:01:42]} 41. Kf1 {[%emt 0:12:42]} Qa6+ {[%emt 0:11:11]} 42. R3e2 {[%emt 0:08:58]} (42. Ne2 $142 Nxe1 43. Bxe4 fxe4 44. Kxe1) 42... Qg6 {[%emt 0:04:57][%csl Gg8][%cal Rg6g2]} 43. Qe7+ {[%emt 0:02:40]} Rg7 {[%emt 0:00:59]} 44. Qxg7+ {[%emt 0:00:09]} Kxg7 {[%emt 0:00:05]} 45. Rd1 {[%emt 0:00:16]} Nh2+ {[%emt 0:01:16]} 46. Kg1 {[%emt 0:00:07] [#]} f4 $1 {[%emt 0:00:14] ( -> ...f3)} 47. Kh1 {[%emt 0:01:28]} (47. f3 exf3) 47... f3 {[%emt 0:01:15] Black mates.} 48. Bxf3 {[%emt 0:00:13]} Nxf3 {[%emt 0:00:10]} 49. Nxe4 {[%emt 0:00:26]} Qh5 {[%emt 0:00:57] Weighted Error Value: White=0.95/Black=0.29 (precise)} 0-1

[Event "Israeli Championship 2022"]
[Site "Yosiah Arad"]
[Date "2022.12.06"]
[Round "2.6"]
[White "Boruchovsky, Avital"]
[Black "Levitan, Tal"]
[Result "1-0"]
[ECO "E40"]
[WhiteElo "2552"]
[BlackElo "2243"]
[Annotator "TA"]
[PlyCount "83"]
[EventDate "2022.12.05"]
[EventType "swiss"]
[EventCountry "ISR"]
[SourceTitle "playchess.com"]
[Source "ChessBase"]
[SourceQuality "1"]
[TimeControl "40/5400+30:1800+30"]

{[%evp 11,83,38,39,10,27,35,57,33,56,18,25,0,0,-35,14,-44,0,4,-14,-11,0,-15,-26,-35,0,-1,46,-22,0,0,16,10,56,70,33,67,45,49,50,20,64,0,22,18,25,34,252,245,304,304,297,291,301,266,256,270,488,285,274,287,375,376,467,460,916,902,772,395,5489,5389,5289,5289,5281,4525]} 1. d4 {[%emt 0:00:03]} Nf6 {[%emt 0:00:24]} 2. c4 {[%emt 0:00:07]} e6 {[%emt 0:00:04]} 3. Nc3 {[%emt 0:00:05]} Bb4 {[%emt 0:00:30]} 4. e3 {[%emt 0:00:43]} O-O {[%emt 0:00:54]} 5. Bd3 {[%emt 0:00:06]} Nc6 {[%emt 0:01:27]} 6. Nge2 {[%emt 0:11:11]} d5 {[%emt 0:00:50]} 7. a3 {[%emt 0:00:43] E40: Nimzo-Indian: Rubinstein (4 e3): Unusual Black 4th moves.} dxc4 {[%emt 0:02:32]} 8. Bxc4 {[%emt 0:00:12]} Bd6 {[%emt 0:00:05]} 9. f4 {[%emt 0:03:07] White is slightly better.} Nd5 {[%emt 0:25:57] [#]} 10. e4 $146 {[%emt 0:11:31]} ({Predecessor:} 10. O-O Be7 11. Kh1 Nxc3 12. bxc3 Na5 13. Ba2 b6 14. Qd3 c5 15. Bb2 Qc7 16. Rae1 {0-1 (38) Wohlmann,E (2210)-Lerner,K (2580) Oberwart 1996}) 10... Nxc3 {[%emt 0:03:30]} 11. bxc3 {[%emt 0:03:10]} Na5 {[%emt 0:07:07]} 12. Ba2 {[%emt 0:07:09]} b6 {[%emt 0:06:14]} (12... Qh4+ $15 13. g3 Qg4) 13. Qd3 {[%emt 0:01:50]} (13. e5 $11 Be7 14. O-O) 13... c5 {[%emt 0:03:04]} (13... Qh4+ $15 14. g3 Qh3) 14. O-O $11 {[%emt 0:01:40]} Be7 {[%emt 0:04:14]} 15. Be3 $1 {[%emt 0:09:39]} c4 {[%emt 0:07:23]} 16. Qc2 {[%emt 0:13:58]} f5 {[%emt 0:00:52]} 17. Rad1 {[%emt 0:05:25]} Bb7 {[%emt 0:08:10] Against d5} 18. Ng3 {[%emt 0:02:09][%cal Re4f5]} Bh4 {[%emt 0:12:31]} ({Of course not} 18... Bxa3 19. Bb1 g6 20. Qa2 $15) (18... Qd7 $11) 19. d5 {[%emt 0:03:37]} (19. exf5 $14 Bxg3 20. fxe6 (20. hxg3 exf5 21. Rfe1 Qd7 $15)) 19... Bxg3 {[%emt 0:00:20]} (19... Qd7 {with more complications.} 20. dxe6 Qxe6 21. e5 Bxg3 22. Rd6 Bxh2+ 23. Kxh2 Qf7) 20. hxg3 {[%emt 0:00:05]} exd5 {[%emt 0:00:11]} 21. exf5 {[%emt 0:01:15]} Qf6 {[%emt 0:01:38]} (21... Nb3 $11) 22. Bb1 $14 {[%emt 0:00:56]} Nb3 {[%emt 0:00:08]} 23. g4 {[%emt 0:04:45]} Qh4 {[%emt 0:03:54]} 24. g5 {[%emt 0:07:59][%cal Of5f6]} Rae8 {[%emt 0:01:33] Prevents f6.} 25. Qf2 {[%emt 0:04:19]} Qg4 {[%emt 0:01:51][%cal Od5d4] [#] Hoping for ...d4!} (25... Qxf2+ {simplifies} 26. Kxf2 Nc5 27. Bxc5 bxc5 28. Rh1 Rf7) 26. Rfe1 {[%emt 0:00:17] Prevents d4.} (26. Rde1 $1 $14) 26... d4 {[%emt 0:05:53]} 27. Bxd4 {[%emt 0:00:11]} Nxd4 {[%emt 0:00:03]} 28. cxd4 {[%emt 0:00:13]} Bc8 $2 {[%emt 0:01:08] This costs Black the game.} (28... Be4 $1 $14) 29. Rxe8 $18 {[%emt 0:02:34]} Qxd1+ {[%emt 0:00:33]} 30. Re1 {[%emt 0:00:05]} Qg4 {[%emt 0:00:11]} 31. Bc2 {[%emt 0:01:11] [#] Black must now prevent d5.} h6 {[%emt 0:01:24]} (31... Bxf5 $2 32. Bd1 $18) 32. gxh6 {[%emt 0:01:13]} Bxf5 {[%emt 0:00:28]} 33. hxg7 {[%emt 0:00:52]} Rf7 {[%emt 0:00:45]} (33... Rf6 {was called for.} 34. Bd1 (34. Re7 b5 $16) 34... Qxg7) 34. Bd1 {[%emt 0:03:01]} ({Less strong is} 34. Bxf5 Rxf5 35. g3 Rb5 $16) (34. Re8+ $142 Kxg7 35. Re3 Bxc2 36. Rg3 Qxg3 37. Qxg3+ Kf8 38. Qh3) 34... Qxg7 {[%emt 0:00:29]} 35. Re5 {[%emt 0:00:03] Inhibits Re7. aiming for Bf3.} Qh6 {[%emt 0:00:49]} 36. Qe3 {[%emt 0:01:13]} Bd3 {[%emt 0:00:28]} 37. Bh5 {[%emt 0:01:18]} Rf8 {[%emt 0:00:53]} (37... Rf6 $142 38. Rg5+ Kh8) 38. Rg5+ {[%emt 0:00:30]} Kh8 {[%emt 0:00:05]} 39. Bf3 {[%emt 0:00:36] Threatens to win with Rh5.} Qf6 $2 {[%emt 0:00:28]} (39... Bh7 40. f5 Qf6) 40. Be4 {[%emt 0:00:52] White is clearly winning.} Bxe4 {[%emt 0:00:21]} 41. Qxe4 {[%emt 0:30:07] White wants to mate with Rh5+.} Qh6 {[%emt 0:19:36] Inhibits Rh5.} 42. Qf3 {[%emt 0:00:00] Weighted Error Value: White=0.38/Black=0.40} 1-0

[Event "Israeli Championship 2022"]
[Site "Yosiah Arad"]
[Date "2022.12.06"]
[Round "2.7"]
[White "Kochavi, Ori"]
[Black "Kobo, Ori"]
[Result "1/2-1/2"]
[ECO "C93"]
[WhiteElo "2326"]
[BlackElo "2554"]
[Annotator "TA"]
[PlyCount "125"]
[EventDate "2022.12.05"]
[EventType "swiss"]
[EventCountry "ISR"]
[SourceTitle "playchess.com"]
[Source "ChessBase"]
[SourceQuality "1"]
[TimeControl "40/5400+30:1800+30"]

{[%evp 24,125,54,51,60,44,34,34,35,34,26,0,0,0,0,0,0,-8,0,-7,8,-10,-6,-16,-10,-18,-17,-19,-14,-14,-14,-14,-14,-14,-14,-22,-18,-18,-17,-16,-17,-27,-21,-25,-14,-10,-14,-11,-10,-7,-6,-5,0,-84,-86,-84,-85,-79,-71,-249,-252,-240,-218,-213,-218,-251,-256,-229,-131,-513,-513,-598,-583,-587,-583,-569,-539,-643,-645,-928,-707,-673,-1096,-866,-866,-726,-726,-700,-681,-670,-8,-8,-8,-8,-8,-8,0,-8,-8,-8,0,0,0,-8]} 1. e4 {[%emt 0:00:37]} e5 {[%emt 0:00:18]} 2. Nf3 {[%emt 0:00:03]} Nc6 {[%emt 0:00:17]} 3. Bb5 {[%emt 0:00:02]} a6 {[%emt 0:00:13]} 4. Ba4 {[%emt 0:00:05]} Nf6 {[%emt 0:00:17]} 5. O-O {[%emt 0:00:05]} Be7 {[%emt 0:00:18]} 6. Re1 {[%emt 0:00:04]} b5 {[%emt 0:00:19]} 7. Bb3 {[%emt 0:00:01]} d6 {[%emt 0:00:13]} 8. c3 {[%emt 0:00:05]} O-O {[%emt 0:00:16]} 9. h3 {[%emt 0:00:02]} h6 {[%emt 0:00:11]} 10. d4 {[%emt 0:02:04]} Bd7 {[%emt 0:00:10]} 11. Nbd2 {[%emt 0:10:52][%cal Bb1d2,Bd2f1,Bf1g3][%mdl 32]} Re8 {[%emt 0:00:25]} 12. Nf1 {[%emt 0:00:56]} Bf8 {[%emt 0:00:19]} 13. Ng3 {[%emt 0:00:03]} a5 {[%emt 0:00:20] C93: Closed Ruy Lopez: Smyslov Variation.} 14. a4 {[%emt 0:08:58]} (14. d5 {simplifies} Nb8 15. a4 b4 16. cxb4 axb4 17. Be3) 14... bxa4 {[%emt 0:00:42]} 15. Bxa4 {[%emt 0:00:33]} exd4 {[%emt 0:00:12] White is slightly better.} 16. Nxd4 {[%emt 0:02:49] [#]} Ne7 $146 {[%emt 0:04:33]} ({Predecessor:} 16... Ne5 17. Bc2 c5 18. Ndf5 Bc6 19. b3 Qc7 20. f4 Ned7 21. c4 g6 22. Bb2 Rab8 {1-0 (51) Paluch,A (2188)-Svalander,F (2161) ICCF email 2019}) 17. Nh5 {[%emt 0:13:54]} Nxh5 {[%emt 0:01:53]} 18. Qxh5 {[%emt 0:01:43]} Bxa4 {[%emt 0:12:08]} 19. Rxa4 {[%emt 0:00:05]} c5 {[%emt 0:05:40]} 20. Nf3 {[%emt 0:03:18]} Qd7 {[%emt 0:03:31]} 21. Ra1 {[%emt 0:00:16]} Qe6 {[%emt 0:09:26]} 22. Bf4 {[%emt 0:07:10]} Ng6 {[%emt 0:09:26]} 23. Bg3 {[%emt 0:00:50]} Qb3 {[%emt 0:15:12]} 24. Re2 {[%emt 0:03:01]} a4 {[%emt 0:01:19]} 25. Rae1 {[%emt 0:06:19]} Re6 {[%emt 0:07:55]} 26. Qd5 {[%emt 0:06:03]} Qxd5 {[%emt 0:07:34]} 27. exd5 {[%emt 0:00:08]} Rxe2 {[%emt 0:00:06]} 28. Rxe2 {[%emt 0:00:03]} Rb8 {[%emt 0:00:10]} 29. Re4 {[%emt 0:01:54]} Rxb2 {[%emt 0:00:12] And now ...a3 would win.} 30. Rxa4 {[%emt 0:00:03]} Rb1+ {[%emt 0:00:10]} 31. Kh2 {[%emt 0:00:07]} Rd1 {[%emt 0:00:43]} 32. c4 $1 {[%emt 0:00:09]} f5 {[%emt 0:02:01]} 33. Bh4 {[%emt 0:08:38]} Nh8 {[%emt 0:10:47] White must now prevent ...Nf7.} 34. Bd8 {[%emt 0:21:41]} Nf7 {[%emt 0:00:50]} 35. Bc7 {[%emt 0:00:28]} g5 {[%emt 0:01:35] Prevents Nh4.} 36. g4 {[%emt 0:00:03]} fxg4 {[%emt 0:01:14]} 37. hxg4 {[%emt 0:00:03]} Rb1 {[%emt 0:01:36]} 38. Nd2 {[%emt 0:02:38]} (38. Ra8 $11 {keeps the balance.}) 38... Rb7 $17 {[%emt 0:00:42]} 39. Ba5 {[%emt 0:00:14]} Ra7 {[%emt 0:05:13]} 40. Ra3 {[%emt 0:02:35][%cal Oa5b4] [#]} Bg7 $1 {[%emt 0:01:19] aiming for ...Bb2.} 41. Kg3 $2 {[%emt 0:31:21]} (41. Kg2 $17) 41... Bb2 $19 {[%emt 0:03:43]} 42. Ra2 {[%emt 0:00:00]} Bc3 {[%emt 0:03:41]} 43. Nb3 {[%emt 0:00:00]} Kh7 {[%emt 0:08:13]} 44. f4 {[%emt 0:00:00]} gxf4+ {[%emt 0:00:43]} 45. Kxf4 {[%emt 0:00:00]} Ne5 {[%emt 0:02:39]} (45... Kg6 $19 {Threatens to win with ...Ra8.} 46. Kg3 {[#]} Be1+ $1 {[%mdl 512]} 47. Kh3 Ne5) 46. Rh2 $2 {[%emt 0:00:00][%mdl 8192]} (46. Bxc3 $17 {was the crucial defense.} Ng6+ 47. Kf5 Rxa2 48. Nd2) 46... Bxa5 {[%emt 0:00:56]} 47. g5 {[%emt 0:00:00]} Ng6+ {[%emt 0:03:32]} 48. Kg4 {[%emt 0:00:00][%cal Ob3a5]} Bc3 {[%emt 0:01:23]} 49. Rxh6+ {[%emt 0:00:00]} Kg7 {[%emt 0:00:06]} 50. Kf5 {[%emt 0:00:00]} Rf7+ {[%emt 0:01:12]} 51. Ke6 {[%emt 0:00:00]} Be5 {[%emt 0:01:50][%cal Rg6f4]} 52. Rh7+ {[%emt 0:00:00]} Kxh7 {[%emt 0:00:03]} 53. Kxf7 {[%emt 0:00:00]} Bf4 {[%emt 0:04:50]} 54. Na5 {[%emt 0:00:00]} Ne5+ {[%emt 0:01:50]} ({Inferior is} 54... Bxg5 55. Ke6 $11) 55. Kf6 {[%emt 0:00:00]} Bd2 {[%emt 0:02:41]} 56. g6+ {[%emt 0:00:00]} Nxg6 $2 {[%emt 0:00:21]} (56... Kh6 $19 57. g7 Kh7) 57. Nb7 $11 {[%emt 0:00:00] The position is equal.} Nf4 {[%emt 0:01:00][%cal Of4d5] Hoping for ...Nxd5+!} 58. Ke7 {[%emt 0:00:00]} Nd3 {[%emt 0:00:26]} 59. Kxd6 {[%emt 0:00:00]} Be3 {[%emt 0:00:14]} 60. Kc6 {[%emt 0:00:00]} Ne5+ {[%emt 0:00:44]} 61. Kb5 {[%emt 0:00:00]} Nd7 {[%emt 0:00:19]} 62. Kc6 {[%emt 0:00:00]} Ne5+ {[%emt 0:00:04]} 63. Kb5 {[%emt 0:00:00] Black had all chances to win.   Weighted Error Value: White=0.54/Black=0.04 (flawless)} 1/2-1/2